bitfinex-derivatives/quotes_ETHF0:USTF0_20250422
["timestamp","ask_amount","ask_price","bid_price","bid_amount"]
[1745284798330,4.19545075,1580.1,1579.6,6.7615]
[1745284798522,4.19545075,1580.1,1579.9,4.47365]
[1745284798932,4.19545075,1580.1,1580.0,3.02729]
[1745284799134,8.34481112,1580.3,1580.2,1.26563]
[1745284799432,8.34481112,1580.3,1580.2,3.2078]
[1745284799633,9.61036112,1580.3,1580.2,44.0078]
[1745284800329,8.34481112,1580.3,1580.2,50.27343]
[1745284800537,9.61036112,1580.3,1580.2,44.0078]
[1745284800721,8.34481112,1580.3,1580.2,44.0078]
[1745284801232,8.34481112,1580.3,1580.2,45.8544]
[1745284801434,5.57851112,1580.3,1580.2,52.12003]
[1745284801830,2.07372999,1580.3,1580.2,52.12003]
[1745284802029,12.44775367,1580.7,1580.3,1.26555]
[1745284802229,12.44775367,1580.7,1580.6,4.47311]
[1745284802529,18.38258823,1580.9,1580.8,1.26515]
[1745284802726,10.08808823,1580.9,1580.8,16.01995]
[1745284802927,4.83595367,1581.1,1581.0,1.26499]
[1745284803128,6.90359667,1581.4,1581.3,1.26475]
[1745284803329,6.58419667,1581.4,1581.3,48.61175]
[1745284803733,5.26649667,1581.4,1581.3,54.40921675]
[1745284803926,27.64017823,1581.8,1581.3,54.40921675]
[1745284803927,27.64017823,1581.8,1581.6,3.2078]
[1745284804125,22.59366823,1581.8,1581.7,11.87302439]
[1745284804335,22.59366823,1581.8,1581.7,10.60859439]
[1745284804528,28.91926823,1581.8,1581.7,3.2078]
[1745284805031,51.05129376,1581.8,1581.5,1.26455]
[1745284805335,6.3256,1581.7,1581.5,1.26455]
[1745284805537,24.36576823,1581.8,1581.6,3.2078]
[1745284805731,24.36576823,1581.8,1581.6,4.47226]
[1745284806038,6.3256,1581.7,1581.6,3.2078]
[1745284806335,1.8409,1581.7,1581.6,4.47231]
[1745284806532,6.36757,1582.4,1581.6,3.2078]
[1745284806734,8.1665,1582.3,1581.8,3.2078]
[1745284806936,8.1665,1582.3,1582.0,4.47193]
[1745284807137,6.3256,1582.2,1581.8,3.21729396]
[1745284807333,1.26427,1581.9,1581.8,3.21729396]
[1745284807732,26.68542553,1581.9,1581.8,3.21729396]
[1745284807927,26.68542553,1581.9,1581.3,42.0647]
[1745284807928,1.2646,1581.5,1581.3,40.8]
[1745284808132,1.26467,1581.4,1581.3,40.8]
[1745284808539,4.89269,1581.8,1581.5,1.26457]
[1745284808736,6.3256,1581.7,1581.3,50.5508]
[1745284808939,6.3256,1581.8,1581.7,1.26443]
[1745284809137,1.26406,1582.2,1581.9,1.26425]
[1745284809334,1.26406,1582.2,1581.7,3.2078]
[1745284809335,0.00949396,1581.9,1581.7,3.2078]
[1745284809645,0.00949396,1581.9,1581.8,1.26435]
[1745284809837,6.33509396,1581.9,1581.8,1.26435]
[1745284810143,0.00949396,1581.9,1581.8,1.26435]
[1745284810343,0.00949396,1581.9,1581.7,9.7498]
[1745284810538,6.3256,1581.8,1581.5,3.2078]
[1745284810842,1.6873,1581.7,1581.6,1.26451]
[1745284811440,0.00949396,1581.9,1581.7,1.26443]
[1745284811646,1.6812,1581.8,1581.7,1.26443]
[1745284812340,2.94556,1581.8,1581.5,11.01433]
[1745284812647,6.3256,1581.7,1581.3,40.80949396]
[1745284812841,4.889,1581.6,1581.3,40.80949396]
[1745284813141,1.26467,1581.4,1581.3,40.80949396]
[1745284813343,1.26467,1581.4,1581.3,0.00949396]
[1745284813539,6.3256,1581.3,1580.7,3.2078]
[1745284813844,11.16872,1581.3,1580.8,40.8]
[1745284814049,3.2078,1581.0,1580.5,7.54738]
[1745284814344,3.2078,1580.8,1580.3,8.2740399]
[1745284814537,3.2078,1580.6,1580.4,40.8]
[1745284814746,1.843,1580.5,1580.4,0.00949396]
[1745284815050,8.1686,1580.5,1580.4,0.00949396]
[1745284815244,3.2078,1581.2,1581.0,1.26499]
[1745284815552,6.3256,1581.1,1580.8,1.26513]
[1745284815849,9.5334,1581.1,1580.8,1.26515]
[1745284816145,9.5334,1581.1,1580.5,3.16342]
[1745284816337,19.08606157,1581.1,1580.4,53.61323396]
[1745284816538,8.17809396,1581.0,1580.5,0.0905]
[1745284816740,9.44310396,1581.0,1580.5,0.0905]
[1745284817048,0.00949396,1581.0,1580.9,1.26507]
[1745284817347,0.00949396,1581.0,1580.9,7.54807]
[1745284817741,6.33509396,1581.0,1580.9,6.283]
[1745284817937,1.89939396,1581.0,1580.9,7.54807]
[1745284819048,1.89939396,1581.0,1580.9,6.283]
[1745284819251,3.16438396,1581.0,1580.9,6.283]
[1745284819548,1.89939396,1581.0,1580.9,7.54807]
[1745284819848,1.8935,1581.6,1581.0,3.16249]
[1745284820047,4.47212,1581.9,1581.2,3.162]
[1745284820240,3.15426,1581.8,1581.6,1.26446]
[1745284820435,8.2155,1581.8,1581.3,50.3813]
[1745284820644,1.26456,1581.6,1581.4,1.26464]
[1745284820846,7.59009,1581.7,1581.5,1.26459]
[1745284821049,7.59009,1581.7,1581.3,50.30029396]
[1745284821050,22.20386157,1581.7,1581.3,50.30029396]
[1745284821251,3.2078,1582.0,1581.6,1.26444]
[1745284821446,1.26438,1581.8,1581.6,1.26444]
[1745284821948,4.47209,1581.9,1581.4,0.0926]
[1745284822145,22.20386157,1581.9,1581.8,1.26435]
[1745284822343,6.23345,1582.1,1581.7,6.282]
[1745284822542,105.90661,1582.5,1581.7,6.282]
[1745284822543,3.2078,1582.6,1581.9,3.2078]
[1745284822850,22.40278157,1582.7,1582.3,3.2078]
[1745284823057,0.19892,1582.7,1582.6,1.26371]
[1745284823255,3.2078,1583.2,1583.1,1.26331]
[1745284823449,3.2078,1583.6,1583.1,6.282]
[1745284823650,6.3256,1583.7,1583.6,1.26291]
[1745284823841,19.08606157,1583.7,1583.5,6.282]
[1745284824153,6.3256,1583.6,1583.2,47.079]
[1745284824548,6.3256,1583.6,1583.2,50.2868]
[1745284824750,1.8616,1583.8,1583.2,50.2868]
[1745284824951,15.68725387,1583.9,1583.3,0.0925]
[1745284825141,34.68331544,1583.9,1583.6,3.2078]
[1745284825346,3.2078,1583.7,1583.2,47.079]
[1745284825548,3.2078,1583.5,1583.2,40.8]
[1745284825854,3.2078,1583.6,1583.2,40.8]
[1745284826041,3.2078,1583.6,1583.2,47.404]
[1745284826348,3.2078,1583.8,1583.2,47.404]
[1745284826543,6.3256,1583.8,1583.3,0.0925]
[1745284826747,3.2078,1584.5,1583.5,3.2078]
[1745284826954,3.2078,1584.7,1584.3,3.2078]
[1745284827260,1.26228,1584.4,1584.3,0.00949396]
[1745284827556,1.26233,1584.4,1583.9,4.47041]
[1745284827749,1.26233,1584.4,1583.7,0.0925]
[1745284827750,9.5334,1584.3,1583.7,0.0925]
[1745284827956,3.2078,1583.9,1583.5,6.322]
[1745284828149,3.2078,1583.9,1583.2,3.2078]
[1745284828346,6.3256,1583.8,1583.2,3.2078]
[1745284828558,1.2632,1583.3,1582.8,106.1948]
[1745284828751,6.3256,1583.3,1582.8,106.1948]
[1745284828946,6.3256,1583.2,1583.1,40.8]
[1745284829149,3.2078,1583.4,1583.1,40.8]
[1745284829545,0.00949396,1583.7,1583.6,1.26291]
[1745284829755,0.00949396,1583.7,1583.6,7.86491]
[1745284829957,6.23709,1584.3,1583.9,1.26263]
[1745284830255,6.3256,1584.2,1583.6,6.6931]
[1745284830446,3.2078,1583.8,1583.4,9.5298]
[1745284830641,1.26299,1583.5,1583.4,6.322]
[1745284831053,7.58859,1583.5,1583.4,6.322]
[1745284831261,22.19436761,1583.5,1583.3,0.00949396]
[1745284831644,3.2078,1584.1,1583.8,1.26272]
[1745284831849,6.3256,1584.0,1583.8,1.26274]
[1745284832051,1.7669,1584.3,1583.9,3.2078]
[1745284832250,3.2078,1584.7,1584.0,1.26254]
[1745284832450,7.58794,1584.4,1584.0,1.26254]
[1745284832649,1.26236,1584.3,1584.1,40.8]
[1745284832847,3.2078,1584.2,1583.5,3.2078]
[1745284833158,3.2078,1583.6,1583.4,0.74221078]
[1745284833357,3.2078,1584.5,1583.6,3.15729]
[1745284833652,3.2078,1584.5,1584.1,3.2078]
[1745284833953,19.07656761,1584.5,1584.2,40.8]
[1745284834148,4.47016,1584.3,1584.2,40.8]
[1745284834348,1.26244,1584.2,1584.1,0.00949396]
[1745284834553,6.3256,1584.2,1583.4,7.86103]
[1745284834847,9.5334,1584.1,1583.4,6.598]
[1745284835051,6.3256,1584.3,1584.0,1.26259]
[1745284835250,6.3256,1584.3,1584.1,1.26244]
[1745284835450,6.3256,1584.3,1584.2,40.8]
[1745284835754,3.21729396,1584.4,1584.2,40.8]
[1745284835945,9.54289396,1584.4,1584.2,40.8]
[1745284836156,6.3256,1584.3,1584.2,42.06241]
[1745284836356,0.00949396,1584.4,1584.2,42.06241]
[1745284836357,6.33509396,1584.4,1584.3,1.26236]
[1745284836553,0.00949396,1584.4,1584.3,1.26236]
[1745284837360,0.00949396,1584.4,1584.2,48.65938]
[1745284837657,5.00949396,1584.4,1584.2,40.8]
[1745284837863,1.26236,1584.3,1584.2,40.8]
[1745284838055,7.58796,1584.3,1584.2,40.8]
[1745284838365,9.32436,1584.3,1584.2,40.8]
[1745284838552,8.062,1584.3,1584.2,40.8]
[1745284838753,8.062,1584.3,1584.2,42.06244]
[1745284838954,0.00949396,1584.4,1584.3,1.26236]
[1745284839256,6.33509396,1584.4,1584.2,40.8]
[1745284839460,0.00949396,1584.4,1584.3,1.26236]
[1745284839660,1.8411,1584.5,1584.3,1.26236]
[1745284839862,8.1667,1584.5,1584.3,1.26236]
[1745284840058,8.1667,1584.5,1584.2,40.8909]
[1745284840059,6.3256,1584.4,1584.2,40.8]
[1745284840264,1.8411,1584.3,1584.2,42.06244]
[1745284840764,3.2078,1584.6,1584.2,45.8]
[1745284840962,6.3256,1584.6,1584.5,1.2622]
[1745284841164,1.8411,1584.7,1584.5,6.596]
[1745284841464,3.2078,1585.1,1584.6,3.2078]
[1745284841668,6.24334,1585.1,1584.8,3.2078]
[1745284841867,4.9816,1585.1,1585.0,1.2618]
[1745284842361,1.2618,1585.0,1584.9,0.00946342]
[1745284842571,11.25396,1585.0,1584.2,9.8028]
[1745284842862,1.26215,1584.6,1584.2,6.595]
[1745284843053,1.2621,1584.7,1584.4,1.26225]
[1745284843255,1.26177,1585.1,1584.8,1.26193]
[1745284843463,3.2078,1585.2,1584.9,1.26185]
[1745284843663,10.79507,1585.2,1584.9,42.15274]
[1745284843859,0.0093616,1585.1,1585.0,1.2618]
[1745284844061,0.0093616,1585.1,1585.0,1.3527]
[1745284845058,11.3349616,1585.1,1584.9,40.8]
[1745284845360,6.3256,1585.0,1584.9,42.06188]
[1745284845556,0.0093616,1585.1,1585.0,1.2618]
[1745284845762,0.0093616,1585.1,1585.0,6.3349]
[1745284845965,0.01283474,1585.3,1585.1,1.2617]
[1745284846167,6.3256,1585.2,1585.1,1.26172]
[1745284846366,0.01283474,1585.3,1585.2,1.26164]
[1745284846367,1.78883474,1585.3,1585.2,1.26164]
[1745284847565,8.11443474,1585.3,1585.0,5.0731]
[1745284847765,6.3256,1585.2,1585.1,1.26165]
[1745284847968,8.11443474,1585.3,1585.1,1.26165]
[1745284848166,0.01283474,1585.3,1585.2,1.26164]
[1745284848373,5.01324,1586.0,1585.2,3.2078]
[1745284848374,5.0684,1586.0,1585.2,3.2078]
[1745284848567,3.2078,1586.5,1585.7,3.2078]
[1745284848870,6.3256,1586.4,1585.8,8.3648]
[1745284849168,1.8584,1586.3,1585.9,40.80946342]
[1745284849369,8.184,1586.3,1585.9,40.80946342]
[1745284849670,6.3256,1586.2,1585.9,42.07048342]
[1745284849867,1.8584,1586.1,1586.0,11.0608]
[1745284850063,8.184,1586.1,1586.0,9.7998]
[1745284850263,13.184,1586.1,1585.9,40.82446342]
[1745284850563,7.5866,1586.0,1585.9,40.82446342]
[1745284850766,16.0669,1586.0,1584.8,6.59]
[1745284850973,1.26172,1585.1,1584.7,3.2078]
[1745284851168,1.8506,1585.0,1584.8,1.26193]
[1745284851471,1.8506,1585.0,1584.7,3.2078]
[1745284851472,11.384,1585.0,1584.9,1.26188]
[1745284851669,11.384,1585.0,1584.9,40.8]
[1745284852069,11.384,1585.0,1584.9,45.26968]
[1745284852260,0.00946342,1585.1,1584.9,45.26968]
[1745284852261,0.00946342,1585.1,1585.0,1.2618]
[1745284852465,1.8506,1585.3,1585.2,1.2616]
[1745284852666,8.1762,1585.3,1585.2,1.2616]
[1745284852865,1.8506,1585.3,1585.2,1.2616]
[1745284853371,8.1762,1585.3,1585.0,1.8289]
[1745284853575,3.2078,1585.5,1585.3,1.26153]
[1745284853871,6.30617213,1585.4,1585.3,6.59]
[1745284854085,8.08297213,1585.4,1585.3,7.85156]
[1745284854283,1.9122,1585.9,1585.3,12.95165]
[1745284854478,8.08297213,1585.8,1585.4,1.7537]
[1745284854676,1.7768,1585.8,1585.6,1.2613]
[1745284854877,6.30617213,1585.7,1585.5,1.26136]
[1745284855083,6.25134943,1585.6,1585.5,1.25212145]
[1745284855282,9.45914943,1585.7,1585.5,1.26135]
[1745284855472,10.72042943,1585.7,1585.6,0.02741135]
[1745284855788,4.46908,1585.7,1585.6,0.02741135]
[1745284855975,4.46908,1585.7,1585.6,1.28873135]
[1745284855976,6.25134943,1585.7,1585.6,1.28873135]
[1745284856181,6.27549,1586.1,1585.8,1.2611]
[1745284856484,6.24211088,1586.0,1585.9,1.26108]
[1745284856791,6.24211088,1586.1,1586.0,1.261]
[1745284857085,3.2078,1586.3,1585.9,40.88223183]
[1745284857388,1.261,1586.0,1585.9,40.88223183]
[1745284857986,10.71091088,1586.0,1585.9,40.88223183]
[1745284858282,15.71091088,1586.0,1585.9,40.88223183]
[1745284858483,9.44991088,1586.0,1585.9,40.88223183]
[1745284858788,7.50311088,1586.0,1585.9,40.88223183]
[1745284859278,10.71091088,1586.0,1585.9,40.88223183]
[1745284859480,1.7375,1586.2,1585.9,45.88223183]
[1745284859784,6.24211088,1586.1,1586.0,6.79223183]
[1745284860082,6.24211088,1586.1,1586.0,8.05323183]
[1745284860285,11.25291088,1586.1,1586.0,0.08223183]
[1745284860486,8.04511088,1586.1,1586.0,0.08223183]
[1745284860779,3.2078,1586.3,1586.2,1.26084]
[1745284860982,6.24211088,1586.2,1586.1,7.97092]
[1745284861186,9.44991088,1586.2,1586.1,7.97092]
[1745284861489,9.44991088,1586.2,1586.1,6.71]
[1745284861683,6.24211088,1586.2,1586.1,8.05315183]
[1745284861986,7.50295088,1586.2,1586.1,6.79223183]
[1745284862182,17.51375088,1586.2,1586.1,0.08223183]
[1745284862774,12.51375088,1586.2,1586.1,0.08223183]
[1745284862987,17.51375088,1586.2,1586.1,0.08223183]
[1745284863184,12.51375088,1586.2,1586.1,0.08223183]
[1745284863393,17.51375088,1586.2,1586.1,0.08223183]
[1745284863986,12.51375088,1586.2,1586.1,0.08223183]
[1745284864491,17.51375088,1586.2,1586.1,0.08223183]
[1745284864989,17.51375088,1586.2,1585.8,0.00946342]
[1745284864990,1.26108,1585.9,1585.8,0.00946342]
[1745284865187,1.26136,1585.6,1585.2,102.925]
[1745284865381,3.2078,1585.6,1585.2,102.91576145]
[1745284865584,6.24211088,1585.5,1585.3,42.7215]
[1745284865788,6.24211088,1585.6,1585.5,1.26135]
[1745284866083,6.24211088,1585.5,1585.4,1.26141]
[1745284866285,6.24211088,1585.7,1585.6,1.26128]
[1745284866479,6.24211088,1585.7,1585.6,40.8]
[1745284866682,7.50335088,1585.7,1585.6,40.8]
[1745284867385,12.50335088,1585.7,1585.6,40.8]
[1745284868079,14.32295088,1585.7,1585.6,40.8]
[1745284868389,14.43588462,1585.7,1585.6,40.8]
[1745284868690,16.26168685,1585.7,1585.6,40.8]
[1745284868891,1.26148,1585.4,1585.3,0.00946342]
[1745284869086,4.46928,1585.4,1585.3,0.00946342]
[1745284869289,15.71139088,1585.4,1585.3,0.00946342]
[1745284869498,1.26166,1585.2,1584.8,6.709]
[1745284869784,1.26175,1585.1,1584.9,40.8]
[1745284869986,6.24211088,1585.1,1585.0,1.2618]
[1745284870289,1.26157,1585.3,1585.1,1.26166]
[1745284870483,10.71144088,1585.4,1585.1,1.2617]
[1745284870680,6.24211088,1585.3,1585.1,1.2617]
[1745284870885,6.24211088,1585.3,1585.2,1.26164]
[1745284871092,3.2078,1585.4,1585.3,1.26156]
[1745284871389,1.8196,1585.7,1585.5,1.26133]
[1745284871585,0.00946342,1585.8,1585.7,1.26124]
[1745284871789,0.00022487,1585.8,1585.7,16.98587418]
[1745284872088,0.00022487,1585.8,1585.7,13.77691344]
[1745284872291,0.00022487,1585.8,1585.7,47.8676721]
[1745284872589,15.71129575,1585.8,1585.7,40.8]
[1745284872786,1.26153,1585.4,1585.2,1.26164]
[1745284872989,5.0741,1585.7,1585.1,13.07792]
[1745284873189,6.24211088,1585.6,1585.2,0.80816618]
[1745284873379,3.2078,1585.5,1585.1,11.17847]
[1745284873581,1.8663,1585.4,1585.1,9.9168]
[1745284873785,1.2616,1585.3,1585.0,0.00946342]
[1745284873985,1.8663,1585.2,1585.0,0.00946342]
[1745284874286,1.26132,1585.6,1585.2,1.26164]
[1745284874479,1.26132,1585.6,1585.1,47.509]
[1745284874480,1.2614,1585.5,1585.3,3.16094]
[1745284874686,7.50351088,1585.5,1585.4,1.26148]
[1745284874885,6.24211088,1585.5,1585.4,1.26148]
[1745284875080,6.24211088,1585.5,1585.3,3.1609]
[1745284875385,0.00022487,1585.8,1585.7,1.26124]
[1745284875584,3.2078,1586.1,1585.8,0.00901368]
[1745284875585,1.26108,1585.9,1585.8,0.00901368]
[1745284875984,1.25214632,1585.8,1585.7,6.71]
[1745284876187,9.3325572,1585.8,1585.5,1.26134]
[1745284876390,1.2614,1585.5,1585.3,1.2615]
[1745284876587,1.8383,1585.4,1585.2,4.46939]
[1745284876784,3.09981,1585.4,1585.1,42.7923]
[1745284876989,6.24211088,1585.3,1585.2,3.25388]
[1745284877191,8.08041088,1585.3,1585.2,3.25388]
[1745284877591,1.26164,1585.2,1585.1,40.8]
[1745284877897,6.24211088,1585.2,1585.1,42.06172]
[1745284878200,6.24211088,1585.2,1585.1,45.26952]
[1745284878497,6.24211088,1585.2,1585.1,42.06172]
[1745284878700,7.50375088,1585.2,1585.1,40.8]
[1745284878993,1.26172,1585.1,1585.0,0.00946342]
[1745284879298,9.39113088,1585.1,1585.0,40.80946342]
[1745284879494,6.24211088,1585.1,1585.0,42.07126342]
[1745284879696,3.08715342,1585.6,1585.0,52.51946342]
[1745284879893,8.12941088,1585.5,1585.3,1.26153]
[1745284880090,8.12941088,1585.5,1585.4,1.26148]
[1745284880291,0.00946342,1585.6,1585.5,1.2614]
[1745284880600,0.00946342,1585.6,1585.5,6.4014]
[1745284880896,7.5128943,1585.6,1585.4,7.97144]
[1745284881096,6.24211088,1585.5,1585.4,7.97144]
[1745284881303,7.50351088,1585.5,1585.4,8.5369]
[1745284881597,6.24211088,1585.5,1585.2,1.9659]
[1745284881799,8.24051088,1585.4,1585.3,7.97051]
[1745284881994,1.9984,1585.4,1585.3,7.97056]
[1745284882193,8.24051088,1585.4,1585.3,7.97056]
[1745284882389,8.24051088,1585.4,1585.3,1.26156]
[1745284882390,6.24211088,1585.4,1585.3,1.26156]
[1745284883197,1.9984,1585.4,1585.3,1.26156]
[1745284883396,8.24051088,1585.4,1585.3,1.26156]
[1745284883597,1.26159,1585.3,1585.1,11.17846]
[1745284883793,3.21726342,1585.6,1585.1,6.709]
[1745284884002,3.21726342,1585.6,1585.5,4.4692]
[1745284884003,0.00946342,1585.6,1585.5,4.4692]
[1745284884301,3.2078,1586.2,1585.9,1.26108]
[1745284884503,1.2611,1585.9,1585.8,1.26116]
[1745284884708,3.2078,1586.0,1585.6,1.9444]
[1745284884999,6.24211088,1585.9,1585.6,1.26129]
[1745284885194,6.24211088,1585.9,1585.8,1.26116]
[1745284885390,1.26108,1585.9,1585.8,1.26116]
[1745284885600,1.26116,1585.8,1585.6,8.66286342]
[1745284885904,6.24211088,1585.8,1585.7,1.26124]
[1745284886102,3.2078,1586.0,1585.6,9.92418342]
[1745284886299,6.24211088,1586.0,1585.7,5.1522]
[1745284886501,3.2078,1586.4,1585.7,8.3053]
[1745284886701,7.50290088,1586.3,1586.1,1.26088]
[1745284886901,1.261,1586.0,1585.9,1.9444]
[1745284887102,1.26108,1585.9,1585.8,40.8]
[1745284887301,6.24211088,1586.2,1585.8,40.8]
[1745284887601,6.24211088,1586.2,1586.0,1.261]
[1745284887602,6.24211088,1586.1,1586.0,1.261]
[1745284887799,6.24211088,1586.1,1586.0,3.1474]
[1745284888298,1.26073,1586.4,1586.2,1.26077]
[1745284888503,1.823,1586.3,1586.2,1.26077]
[1745284888703,8.06511088,1586.3,1586.2,1.8864]
[1745284888897,1.9889,1586.7,1586.2,8.14724]
[1745284889104,12.47945387,1587.3,1586.5,3.2078]
[1745284889296,12.47945387,1587.3,1587.2,4.46785]
[1745284889498,12.47945387,1587.3,1587.2,6.728]
[1745284889707,17.47945387,1587.3,1586.7,1.26041]
[1745284889894,6.35793,1587.2,1586.4,3.2078]
[1745284890198,5.1025,1587.2,1586.6,3.2078]
[1745284890400,3.09766,1587.1,1586.9,1.26026]
[1745284890604,3.09768,1587.1,1586.9,6.726]
[1745284890801,1.26007,1587.2,1587.0,1.26019]
[1745284891005,0.00946342,1587.2,1587.1,1.26013]
[1745284891399,3.2078,1588.0,1587.1,104.3598]
[1745284891606,26.39052543,1588.3,1587.1,104.3598]
[1745284891607,14.54986277,1588.2,1588.1,1.25934]
[1745284891905,6.3008,1588.3,1588.2,1.25926]
[1745284892105,3.2078,1588.8,1588.3,1.25914]
[1745284892302,6.3008,1588.7,1588.4,3.12318]
[1745284892504,6.3008,1588.7,1588.5,6.726]
[1745284892705,9.5086,1588.6,1588.5,6.726]
[1745284892899,4.46674,1588.6,1588.5,6.726]
[1745284893096,10.76754,1588.6,1588.5,6.726]
[1745284893406,10.76754,1588.6,1588.5,0.02312577]
[1745284893608,9.5086,1588.6,1588.5,0.02312577]
[1745284893904,19.94061993,1588.8,1588.6,1.25891]
[1745284894106,6.3008,1588.7,1588.5,0.02312577]
[1745284894307,10.76746,1588.7,1588.6,0.02312577]
[1745284894608,9.5086,1588.7,1588.6,0.02312577]
[1745284895106,6.3008,1588.6,1588.1,40.8]
[1745284895409,3.2078,1588.4,1588.1,40.8]
[1745284895597,21.19942993,1588.8,1588.4,1.25906]
[1745284895797,21.19942993,1588.8,1588.2,8.7095]
[1745284895798,28.11741993,1588.8,1588.5,1.9865]
[1745284896108,28.11741993,1588.8,1588.1,40.8]
[1745284896109,1.25926,1588.2,1588.1,40.8]
[1745284896406,3.2078,1588.2,1587.6,11.18851]
[1745284896602,6.3008,1588.1,1587.8,3.2078]
[1745284896808,5.1126,1588.5,1587.9,1.8291]
[1745284897000,0.00946342,1588.1,1588.0,6.721]
[1745284897304,3.2078,1588.8,1588.0,57.0508]
[1745284897505,6.3008,1588.8,1588.1,99.2918]
[1745284897707,0.31101787,1588.9,1588.6,3.1931]
[1745284897899,7.55963,1588.8,1588.2,3.2078]
[1745284898101,8.2056,1588.8,1588.4,6.721]
[1745284898299,0.31101787,1588.9,1588.6,4.46669]
[1745284898495,6.61181787,1588.9,1588.8,1.25878]
[1745284898702,6.61181787,1588.9,1588.8,6.721]
[1745284898901,9.81961787,1588.9,1588.8,6.721]
[1745284899100,8.51661787,1588.9,1588.8,47.521]
[1745284899303,9.77531787,1588.9,1588.8,47.521]
[1745284899502,14.77531787,1588.9,1588.8,40.8]
[1745284899703,1.25894,1588.6,1588.4,0.00946342]
[1745284900008,1.25902,1588.5,1588.4,0.00946342]
[1745284900306,1.9438,1588.5,1588.4,0.00946342]
[1745284900506,8.2446,1588.5,1588.4,0.00946342]
[1745284900704,9.50362,1588.5,1588.4,40.80946342]
[1745284900898,8.2446,1588.5,1588.4,40.80946342]
[1745284901506,9.50362,1588.5,1588.4,40.80946342]
[1745284901911,14.50362,1588.5,1588.4,40.80946342]
[1745284902108,6.25902,1588.5,1588.4,40.80946342]
[1745284902311,1.25923,1588.3,1588.1,6.719]
[1745284902511,1.25926,1588.2,1588.1,6.719]
[1745284903013,1.25908,1588.5,1588.1,6.719]
[1745284903207,4.46694,1588.4,1588.2,40.8]
[1745284903510,0.00946342,1588.5,1588.2,40.8]
[1745284903709,1.26852342,1588.5,1588.2,40.8]
[1745284904210,3.2078,1588.6,1588.3,1.25912]
[1745284904510,4.77754787,1588.9,1588.4,4.46685]
[1745284904712,3.2078,1588.7,1588.2,145.4884]
[1745284904910,1.25894,1588.6,1588.2,145.4884]
[1745284905113,3.2078,1588.7,1588.2,146.74763]
[1745284905316,2.1266,1588.6,1588.2,143.559]
[1745284905507,3.2078,1588.7,1588.4,1.25908]
[1745284905708,2.1266,1588.8,1588.2,146.7668]
[1745284905919,3.38543,1588.8,1588.4,1.25909]
[1745284906212,3.38543,1588.8,1588.2,146.7668]
[1745284906213,4.46666,1588.7,1588.2,146.7668]
[1745284906413,3.38544,1588.8,1588.4,1.25908]
[1745284906611,3.38544,1588.8,1588.4,4.46684]
[1745284906916,1.25888,1588.7,1588.4,4.46684]
[1745284907413,1.25887,1588.7,1588.4,4.46684]
[1745284907808,1.25894,1588.6,1588.4,3.2078]
[1745284908009,1.25926,1588.2,1588.1,0.00946342]
[1745284908213,6.35589,1588.3,1587.5,3.2078]
[1745284908405,6.35589,1588.3,1587.7,2.2187]
[1745284908406,2.1584,1588.1,1587.7,2.2187]
[1745284908606,3.2078,1588.3,1587.9,1.25947]
[1745284908607,1.25926,1588.2,1587.9,1.25947]
[1745284908911,3.2078,1588.1,1587.8,47.517]
[1745284909106,1.25944,1588.0,1587.9,2.2187]
[1745284909317,1.25949,1587.9,1587.8,47.517]
[1745284909518,1.25949,1587.9,1587.8,40.80946342]
[1745284909810,3.21726342,1588.1,1587.8,40.80946342]
[1745284910017,1.25942,1588.0,1587.9,2.2187]
[1745284910217,4.47665342,1588.1,1587.8,40.80946342]
[1745284910418,1.25942,1588.0,1587.9,2.2187]
[1745284910717,1.26882342,1588.1,1587.9,2.2187]
[1745284911019,1.2592,1588.3,1588.1,1.25931]
[1745284911316,1.25917,1588.4,1588.1,1.25931]
[1745284911517,1.25917,1588.4,1588.2,3.57995]
[1745284911715,4.46687,1588.5,1588.2,3.57995]
[1745284911915,1.2591,1588.4,1588.2,2.3207]
[1745284912118,1.25918,1588.3,1588.2,2.3207]
[1745284912412,3.2078,1588.5,1588.3,1.25916]
[1745284912609,3.2078,1588.5,1588.1,6.717]
[1745284912809,4.46698,1588.3,1588.2,2.3207]
[1745284913010,1.25926,1588.2,1588.1,6.717]
[1745284913210,3.2078,1588.5,1588.1,7.9763]
[1745284913414,5.4834,1588.5,1588.2,2.3207]
[1745284913812,3.2078,1588.5,1588.2,2.3207]
[1745284914212,4.46685,1588.5,1588.2,8.6427]
[1745284914517,1.25912,1588.4,1588.2,9.9019]
[1745284914718,3.2078,1588.5,1588.2,8.6427]
[1745284914915,1.25897,1588.6,1588.4,1.25906]
[1745284915112,1.25897,1588.6,1588.5,2.3291]
[1745284915312,8.2078,1588.6,1588.2,3.2078]
[1745284915514,1.2592,1588.3,1588.1,10.3054]
[1745284915715,1.2592,1588.3,1588.2,2.3291]
[1745284916419,1.25926,1588.2,1588.1,6.717]
[1745284916615,0.00627722,1589.0,1588.8,1.25878]
[1745284916922,1.26493722,1589.0,1588.8,6.89]
[1745284917114,2.42171787,1588.9,1588.8,47.69]
[1745284917316,0.31101787,1588.9,1588.8,47.69]
[1745284917516,0.31101787,1588.9,1588.8,52.15658]
[1745284917922,0.00627722,1589.0,1588.9,1.2587]
[1745284918121,0.00627722,1589.0,1588.9,3.3968]
[1745284918425,1.25835,1589.4,1589.1,1.25847]
[1745284918715,3.2078,1589.5,1589.2,9.2991]
[1745284919219,3.2078,1589.5,1589.4,1.25831]
[1745284919411,0.02331,1589.6,1589.2,12.44523]
[1745284919616,0.02331,1589.6,1589.3,0.82135363]
[1745284919812,0.02331,1589.6,1589.2,3.39656]
[1745284920016,1.25825,1589.5,1589.2,2.1381]
[1745284920315,0.02331,1589.6,1589.3,7.159]